Cogmind - Beta 9.6 @@@ ROGUE MODE // 2020.09.07 @ 08:19:49 Player: Calanor Result: Destroyed by as-05273 with Assembled F-torch Performance ------------- Evolutions (0) 0 Regions Visited (2) 400 Robots Destroyed (55) 275 Value Destroyed (632) 632 Prototype IDs (5) 100 Alien Tech Used (0) 0 Bonus (0) 0 TOTAL SCORE: 1407 Bonus ------- None Cogmind --------- Core Integrity 0/250 Matter 283/300 Energy 160/160 System Corruption 0% Temperature Cool (217) Movement Treading (200) Ox2 Location -10/Mines Parts ------- > --- POWER (1) -------- Light Nuclear Core > --- PROPULSION (2) --- Improved Treads > --- UTILITY (2) ------ High-capacity Storage Unit Medium Armor Plating > --- WEAPON (2) ------- EM Pulse Cannon > --- INVENTORY (12) --- Ion Engine Nuclear Core Light Angular Momentum Engine Carbon-fiber Leg Large Storage Unit Advanced Sensor Array Improved Trap Extractor Beamcaster Assault Rifle Assault Rifle Assault Rifle Grenade Launcher Peak State ------------ > --- POWER ------------ Light Nuclear Core > --- PROPULSION ------- Improved Treads Improved Treads > --- UTILITY ---------- High-capacity Storage Unit Medium Armor Plating > --- WEAPON ----------- Assault Rifle Assault Rifle > --- INVENTORY -------- Ion Engine Light Angular Momentum Engine Carbon-fiber Leg Large Storage Unit Medium Armor Plating Beamcaster Assault Rifle Assault Rifle Assault Rifle Assault Rifle Assault Rifle Grenade Launcher [Rating: 14] Favorites ----------- Power Ion Engine Engine Ion Engine Power Core Light Nuclear Core Propulsion Light Treads Treads Light Treads Utility Improved Terrain Scanner Device Improved Terrain Scanner Storage High-capacity Storage Unit Processor Seismic Analyzer Protection Medium Armor Plating Weapon Assault Rifle Energy Gun Medium Laser Energy Cannon EM Pulse Cannon Ballistic Gun Assault Rifle Launcher Grenade Launcher Build | -11 -10 -10 ------- Run | Scr Mat Min Slots Evolved . | . . . Power . | . . . Propulsion . | . . . Utility . | . . . Weapon . | . . . Parts Attached 30 | 8 17 5 Power 3 | 1 1 1 Engine 2 | 1 1 . Core 1 | . . 1 Reactor . | . . . Propulsion 6 | 2 4 . Treads 6 | 2 4 . Leg . | . . . Wheel . | . . . Hover . | . . . Flight . | . . . Utility 7 | 3 3 1 Device 1 | 1 . . Storage 4 | 1 3 . Processor 1 | 1 . . Hackware . | . . . Protection 1 | . . 1 Artifact . | . . . Weapon 14 | 2 9 3 Energy Gun 2 | 2 . . Energy Cannon 1 | . . 1 Ballistic Gun 8 | . 7 1 Ballistic Cannon . | . . . Launcher 3 | . 2 1 Special Weapon . | . . . Impact Weapon . | . . . Slashing Weapon . | . . . Piercing Weapon . | . . . Special Melee Weapon . | . . . Unidentified Prototypes . | . . . Parts Lost 3 | . 1 2 Power . | . . . Propulsion . | . . . Utility 1 | . . 1 Weapon 2 | . 1 1 Highest Loss Streak 1 | . 1 1 Average Slot Usage (%) 98 | . 99 95 Engine 12 | . 14 6 Core 2 | . . 7 Treads 26 | . 27 24 Device 11 | . 14 3 Storage 14 | . 14 14 Protection 2 | . . 10 Energy Gun 3 | . 4 . Ballistic Gun 24 | . 23 27 Naked Turns . | . . . Heaviest Build 52 | 13 42 52 Greatest Support 46 | 40 46 46 Greatest Overweight (x) 2 | . 1 2 Average Overweight (x) . | . . 1 Largest Inventory Capacity 12 | 6 12 12 Average Capacity 10 | 5 10 12 Most Carried 12 | 6 12 12 Average Carried 9 | 5 8 11 Final Capacity 12 | 6 12 12 Final Carried 12 | 6 12 12 Class Distribution -------------------- 100% | Mutant Dominant Class ---------------- Mutant | -10/Materials Mutant | -10/Mines Resources | -11 -10 -10 ----------- Run | Scr Mat Min Matter Collected 774 | 280 321 173 Remotely . | . . . Salvage Created 1467 | 220 952 295 Parts 109 | 18 68 23 Haulers Intercepted 2 | . 2 . Recyclers Shooed 6 | . 5 1 Parts Field Recycled . | . . . Retrieved Matter . | . . . Parts Self-Destructed . | . . . Prevented . | . . . Kills | -11 -10 -10 ------- Run | Scr Mat Min Combat Hostiles Destroyed 20 | . 13 7 Guns 13 | . 9 4 Cannons 1 | . . 1 AOE 6 | . 4 2 Classes Destroyed 9 | 3 5 1 Worker 11 | 2 8 1 Builder 8 | . 6 2 Tunneler 7 | 5 1 1 Hauler 2 | . 2 . Recycler 5 | 1 3 1 Watcher 2 | . 2 . Swarmer 8 | . 5 3 Grunt 10 | . 8 2 Assembled 2 | . . 2 Best Kill Streak 8 | 4 6 8 Combat Bots Only 5 | . 3 5 Max Kills in Single Turn 2 | 1 2 2 Gunslinging . | . . . Exploded 2 | . 2 1 Melee . | . . . Uniques/NPCs Destroyed . | . . . Combat | -11 -10 -10 -------- Run | Scr Mat Min Damage Taken 1347 | . 717 630 Core 257 | . 159 98 Absorbed by Shields . | . . . Core Remaining (%) 100 | 100 . . Volleys Fired 153 | 22 110 21 Largest 2 | 2 2 2 Hottest 90 | 90 90 83 Shots Fired 300 | 44 214 42 Gun 288 | 44 208 36 Cannon 4 | . . 4 Launcher 8 | . 6 2 Special . | . . . Kinetic 157 | . 121 36 Thermal 131 | 44 87 . Explosive 8 | . 6 2 Electromagnetic 4 | . . 4 Robot Hit Streak 13 | 9 13 9 Robot Miss Streak 5 | 2 5 3 Penetration Max . | . . . Secondary Targets 3 | . . 3 Max Gunslinging Chain 1 | . . 1 Shots Hit Robots 187 | 30 129 28 Core Hits 77 | 9 52 16 Critical Hits 1 | . . 1 Critical Kills . | . . . Critical Parts Destroyed 1 | . . 1 Melee Attacks . | . . . Impact . | . . . Slashing . | . . . Piercing . | . . . Sneak Attacks . | . . . Combat Hostiles . | . . . Follow-up Attacks . | . . . Damage Inflicted 2844 | 393 1968 483 Guns 2112 | 393 1407 312 Cannons 65 | . . 65 Explosions 667 | . 561 106 Melee . | . . . Ramming . | . . . Kinetic 991 | . 679 312 Thermal 1280 | 393 887 . Explosive 508 | . 402 106 Electromagnetic 65 | . . 65 Impact . | . . . Slashing . | . . . Piercing . | . . . Highest Corruption . | . . . Average Corruption . | . . . Corruption Purged . | . . . Overload Shots . | . . . Overflow Damage 18 | . 18 . Projectiles . | . . . Explosions 18 | . 18 . Melee . | . . . Knockbacks . | . . . Impact . | . . . Kinetic . | . . . Secondary . | . . . Self-Inflicted Damage 14 | . 14 . Shots 1 | . 1 . Rammed . | . . . Targets Rammed . | . . . Kicked . | . . . Crushed . | . . . Highest Temperature 464 | 282 464 226 Average Temperature 110 | 94 117 96 Received Heat Transfer 493 | . 276 217 Effects 6 | . 6 . Shutdowns 2 | . 2 . Matter Decay 1 | . 1 . Damage (minor) 3 | . 3 . Siege Activations . | . . . Robots Corrupted . | . . . Combat Hostiles . | . . . Parts Fried 1 | . 1 . Impact Corruptions . | . . . Robots Melted . | . . . Combat Hostiles . | . . . Parts Melted 3 | 1 2 . Heat Transferred 3228 | 1053 2175 . Parts Sabotaged . | . . . Parts Stolen . | . . . Parts Stripped . | . . . Power Chain Reactions . | . . . Missiles Intercepted . | . . . Alert | -11 -10 -10 ------- Run | Scr Mat Min Peak Influence 185 | 40 185 139 Average Influence 38 | 24 45 24 Maximum Alert Level . | . . . Low Security (%) 100 | 100 100 100 Level 1 . | . . . Level 2 . | . . . Level 3 . | . . . Level 4 . | . . . Level 5 . | . . . High Security . | . . . Max Security . | . . . Squads Dispatched 2 | . 2 . Investigation 2 | . 2 . Extermination . | . . . Reinforcement . | . . . Assault . | . . . Garrison . | . . . Intercept . | . . . Construction Impeded . | . . . Haulers Reinforced . | . . . Stealth | -11 -10 -10 --------- Run | Scr Mat Min Distress Signals . | . . . Communications Jammed . | . . . Distress Signals . | . . . Times Spotted 36 | . 19 17 Peak Tracking Total 10 | . 5 10 Tactical Retreats . | . . . Traps | -11 -10 -10 ------- Run | Scr Mat Min Traps Triggered 4 | . 3 1 Indirectly . | . . . Trap Hack Attempts . | . . . Triggered . | . . . Disarmed . | . . . Reprogrammed . | . . . Reused . | . . . Traps Extracted . | . . . Installed . | . . . Triggered . | . . . Machines | -11 -10 -10 ---------- Run | Scr Mat Min Machines Disabled 2 | . 2 . Max in Single Turn 2 | . 2 . Machines Sabotaged . | . . . Garrisons Compromised . | . . . Overloaded Fab Kills . | . . . Fab Network Shutdowns . | . . . Hacking | -11 -10 -10 --------- Run | Scr Mat Min Machines Accessed 11 | . 10 1 Terminals 7 | . 7 . Fabricators . | . . . Repair Stations 1 | . 1 . Recycling Units 2 | . 2 . Scanalyzers . | . . . Garrison Access . | . . . Total Hacks 24 | . 23 1 Successful 20 | . 19 1 Failed 4 | . 4 . Catastrophic 1 | . 1 . Database Lockouts . | . . . Manual . | . . . Terminals 16 | . 16 . Fabricators . | . . . Repair Stations 3 | . 3 . Recycling Units 4 | . 4 . Scanalyzers . | . . . Garrison Access . | . . . Terminal Hacks 13 | . 12 1 Record 1 | . 1 . Prototype ID Bank 2 | . 2 . Open Door 1 | . . 1 Emergency Access Points 3 | . 3 . Alert Level 2 | . 2 . Dispatch Records 2 | . 2 . Maintenance Status 1 | . 1 . Registered Components 1 | . 1 . Fabricator Hacks . | . . . Repair Station Hacks 3 | . 3 . Scan Component 2 | . 2 . Repair 1 | . 1 . Recycling Unit Hacks 4 | . 4 . Report Inventory 2 | . 2 . Retrieve Matter 2 | . 2 . Scanalyzer . | . . . Garrison Access Hacks . | . . . Unauthorized Hacks . | . . . Terminals . | . . . Fabricators . | . . . Repair Stations . | . . . Recycling Units . | . . . Scanalyzers . | . . . Garrison Access . | . . . Data Cores Recovered . | . . . Used . | . . . Hacking Detections 6 | . 6 . Full Trace Events 4 | . 4 . Feedback Events . | . . . Feedback Blocked . | . . . Robot Schematics Acquired . | . . . Robots Built . | . . . Matter . | . . . Time . | . . . Total Robot Build Rating . | . . . Part Schematics Acquired . | . . . Parts Built . | . . . Matter . | . . . Time . | . . . Total Part Build Rating . | . . . Parts Repaired 1 | . 1 . Time 26 | . 26 . Parts Recycled . | . . . Recycled Matter . | . . . Retrieved Matter 201 | . 201 . Retrieved Components . | . . . Parts Scanalyzed . | . . . Part Schematics Acquired . | . . . Parts Damaged . | . . . Bothacking | -11 -10 -10 ------------ Run | Scr Mat Min Used RIF Installer . | . . . Robots Hacked . | . . . Non-combat . | . . . Combat . | . . . Robot Hacks Applied . | . . . Relay Couplers Released . | . . . Robots Rewired . | . . . Allies Hacked . | . . . Hacks Repelled . | . . . Allies | -11 -10 -10 -------- Run | Scr Mat Min Total Allies . | . . . Largest Group . | . . . Highest-Rated Group . | . . . Highest-Rated Ally . | . . . Total Orders . | . . . Ally Attacks . | . . . Total Damage . | . . . Kills . | . . . Allies Corrupted . | . . . Allies Melted . | . . . Intel | -11 -10 -10 ------- Run | Scr Mat Min Robot Analysis Total . | . . . Derelict Logs Recovered 1 | . . 1 Drone Launches . | . . . Drone Recoveries . | . . . Exploration | -11 -10 -10 ------------- Run | Scr Mat Min Turns Passed 4048 | 399 2690 959 Spaces Moved 2035 | 201 1372 462 Core 8 | 8 . . Treads 2027 | 193 1372 462 Legs . | . . . Wheels . | . . . Hover . | . . . Flight . | . . . Fastest Speed 50 | 50 160 160 Average Speed 169 | 155 167 180 Slowest Speed 200 | 160 180 200 Overloaded Moves . | . . . Propulsion Burnouts . | . . . Robots Hopped . | . . . Cave-ins Triggered . | . . . Exploration Rate (%) 56 | 8 100 62 Regions Visited 2 Branch Regions 1 Pre-discovered Areas . | . . . Known Exits Taken . | . . . Unknown Exits Taken 2 | 1 1 . Scrap Searched 1 | . . 1 Spaces Dug . | . . . Terrain Destroyed 45 | . 36 9 Melee . | . . . Projectile . | . . . AOE 45 | . 36 9 Actions | -11 -10 -10 --------- Run | Scr Mat Min Total 2363 | 243 1572 548 Wait 71 | . 26 45 Move 2033 | 200 1371 462 Hop . | . . . Pick Up 45 | 12 25 8 Fast Attach 3 | 2 1 . Attach 9 | 6 2 1 Detach . | . . . Swap 18 | . 14 4 Drop 31 | 1 23 7 Fire 153 | 22 110 21 Melee . | . . . Ram . | . . . Kick . | . . . Crush . | . . . Escape Stasis . | . . . Rewire . | . . . Trap . | . . . Miscellaneous . | . . . Route ------- -11/Scrapyard -10/Materials (discovered 5 exits: [*Mat x3] / *Min x2) -10/Mines (discovered 2 exits: [*Mat] / [*Exi]) History --------- Turn | Location | Event 3 | -11/Scrapyard | Discovered new exit (range 14) 400 | -11/Scrapyard | Entered Materials 401 | -10/Materials | Build established: Mutant 489 | -10/Materials | Discovered new exit (range 16) 602 | -10/Materials | Core integrity fell below 50% 796 | -10/Materials | Repaired Lgt. Treads? 947 | -10/Materials | Discovered new exit (range 5) 1093 | -10/Materials | Discovered new exit (range 9) 2214 | -10/Materials | Discovered new exit (range 5) 2852 | -10/Materials | Discovered new exit (range 15) 3090 | -10/Materials | Entered Mines 3342 | -10/Mines | Core integrity fell below 20% 3563 | -10/Mines | Discovered new exit (range 9) 3748 | -10/Mines | Met a Derelict who couldn't figure out how to use a Trap Extractor 3889 | -10/Mines | Deemed a non-threat by the Exiles lab entrance 3889 | -10/Mines | Discovered new exit (range 5) 3994 | -10/Mines | Assembled infested the area 4049 | -10/Mines | Destroyed by as-05273 with Assembled F-torch Last Messages --------------- Acquired Beamcaster. Dropped Assault Rifle. Triggered Blade Trap. Massive razor-sharp blades shoot up from within the floor. Imp. Treads severed. Acquired EM Pulse Cannon. U-05 Engineer lays Concrete. Acquired Adv. Sensor Array. U-05 Engineer lays Concrete. Acquired Nuclear Core. Dropped Med. Armor Plating. Acquired Imp. Trap Extractor. "No threat detected, you may enter." EXIT=FOUND ALERT: Infestation in the mines, dispatching Demolisher response squad. as-21575 misfires. as-89611 destroyed. as-15035 destroyed. as-21575 misfires. Assault Rifle destroyed. Map ----- +----------------------------------------------------+ | ????????????????????????????????????????????????? | | ????????????????????????????????????????????????? | | ????????????????????????????????????????????????? | | ????????????????????????????????????????????????? | | ????????????????????????????????????????????????? | | ????????????????????????????????????????????????? | | ????????????????????????????????????????????????# | | ????????????????????????????????????????????????? | | ????????????????????????????????????????????????? | | ????????????????????????????????????????????????? | | ?????????????????????????????????????????? ?????? | | ??????????????????????????????????? #?????????? | | ??????????????????????????????????? #????????? | | ?????????????????###??????????????? ????????? | | ????????????????## #??????????????? ????????? | | ????????????????# ??????????????? ??????? ? | | ????????????????# ??????????????? ??????##? | | ????????????????# #???????????????# ????????? | | ????????????????# #???????????????# ????????? | | ????????????????# #???????????????# #?#?????#? | | ????????????????# a######??????????# #?#?###### | | ?????????????????# a## ##?????????# #??## # | | ?????????????????# aaaa #?????????# #?## | | ?????????????????# aa #???????#?# ### | | ?????????????????## %a ##?????????# ## | | ???######?????????######@#??#???????# ####### | | ??## ##?????#?????#?# #######????# ###????## | | ??# ##????????????# #???### ##???????# | | ??# ##????#??????##### ###### #???????? | | ??# ###???#?????????# ## #????##?# | | ???# """ #?#??#????#????# # #??????### | | ???## """ #?????#????#??## #????????# | | ????# """ #?????#???????# #?#??????? | | ????# """ ##????????????# #####????? | | ????# ##??????#????## #????? | | ????## #???????###### #???? | | ?????## ## ##?#????# #???? | | ??????###### ##??????# % ### #??? | | ???????????# ##?????# #### ###??# #?? | | ?????????#?## ##?#??# ##?## ##?????## #? | | ??#?????????## ###### #???## #????????# #? | | ??????##????## #???## #???????# ?? | | ????????##### #########???? ##??????? ?? | | ????????## ###?###?????? #??#???#?? ??? | | ????????# #### ##????## #?????????????? | | #?#?????# = = ## #?????## ##########?????? | | ????????## [** #??########?# #?????? | | ???#?#???## = ##??#""""""#?# #?????? | | ???#??????### = ##?#?# !=//#?# """ #?????? | | ???????????### ##????##= ^[##?# """ #?????? | +----------------------------------------------------+ Best States ------------- Heat Dissipation 25 Energy Generation 14 Energy Capacity 250 Matter Stores 300 Matter Capacity 300 Sight Range 16 Terrain Scan Range 16 Terrain Scan Density 10 Armor Coverage 225 Evasion (%) 40 Recoil Reduction 2 Item Schematics ----------------- None Robot Schematics ------------------ None Fabricated ------------ Nothing Alien Tech Used ----------------- None Achievements -------------- Part-time Mechanic Challenges ------------ None Game ------ Seed UtilityScanDevice Manual? 0 Play Time 00:42:02 Cumulative 5.8 hours Start 2020.09.07 @ 07:32:07 End 2020.09.07 @ 08:19:49 Sessions 1 Manual Loads 0 Difficulty Rogue Special Mode None Game No. 4 Rogue 4 Adventurer 0 Explorer 0 Win Type - Total 0 Types 0/0/0/0/0/0/0 Lore% 2 Gallery% 6 Achievement% 6 Wizard Run 0 Options --------- ASCII 0 Keyboard 0 Movement Numpad Keybinds 0 Fullscreen 1 Font 24/Terminus Map View 76x50 Tactical HUD 0 Map Filters NONE Filters NONE Steam 1 RUN: 6eb2c169-ecff-429c-ae48-c6a2a735da12